bitfinex/quotes_BTCUSD_20240712
["timestamp","ask_amount","ask_price","bid_price","bid_amount"]
[1720779092845,0.876721,57031.0,57030.0,0.12040296]
[1720779093048,0.876721,57031.0,57030.0,0.14340296]
[1720779093814,0.526032,57031.0,57030.0,0.14340296]
[1720779095037,0.175343,57031.0,57030.0,0.20340296]
[1720779095196,0.175343,57031.0,57030.0,0.14340296]
[1720779095415,0.526029,57031.0,57030.0,0.14340296]
[1720779095615,0.175343,57031.0,57030.0,0.14340296]
[1720779096865,0.175332,57035.0,57034.0,0.12040296]
[1720779097066,0.175332,57035.0,57034.0,0.20340296]
[1720779097269,0.525993,57035.0,57034.0,0.14340296]
[1720779097506,0.876654,57035.0,57034.0,0.14340296]
[1720779098262,0.525993,57035.0,57034.0,0.14340296]
[1720779098623,0.350559,57052.0,57034.0,0.14340296]
[1720779098624,0.35061,57044.0,57043.0,0.11575423]
[1720779098826,0.35061,57044.0,57043.0,0.13875423]
[1720779098827,0.525913,57044.0,57043.0,0.13875423]
[1720779099083,0.876523,57044.0,57043.0,0.13875423]
[1720779100902,0.525913,57044.0,57043.0,0.14340296]
[1720779101118,0.175303,57044.0,57043.0,0.14340296]
[1720779102858,0.175297,57046.0,57045.0,0.12040296]
[1720779103082,0.175297,57046.0,57045.0,0.14340296]
[1720779103833,0.525891,57046.0,57045.0,0.13875423]
[1720779104037,0.525891,57046.0,57045.0,0.14340296]
[1720779105320,0.876485,57046.0,57045.0,0.14340296]
[1720779107185,0.876485,57046.0,57040.0,0.00656945]
[1720779107186,0.848588,57046.0,57044.0,0.00464873]
[1720779107411,0.848588,57046.0,57030.0,0.2051184]
[1720779107412,0.175318,57039.0,57038.0,0.00464873]
[1720779107614,1.227229,57039.0,57038.0,0.00464873]
[1720779110934,0.876592,57039.0,57038.0,0.12040296]
[1720779111143,0.350622,57042.0,57038.0,0.30334326]
[1720779111144,0.175312,57041.0,57038.0,0.30334326]
[1720779111409,0.175312,57041.0,57040.0,0.12040296]
[1720779111564,0.175312,57041.0,57040.0,0.14340296]
[1720779111966,0.175312,57041.0,57040.0,0.19757624]
[1720779112757,0.175306,57043.0,57042.0,0.12040296]
[1720779112957,0.175306,57043.0,57042.0,0.14340296]
[1720779114834,1.227142,57043.0,57042.0,0.02764873]
[1720779115040,1.227142,57043.0,57042.0,0.00464873]
[1720779115241,1.719954,57043.0,57042.0,0.00464873]
[1720779115438,1.369342,57043.0,57042.0,0.00464873]
[1720779117216,1.38767278,57043.0,57042.0,0.00464873]
[1720779117871,1.24547278,57043.0,57042.0,0.12040296]
[1720779118273,1.24547278,57043.0,57042.0,0.14340296]
[1720779119959,1.24547278,57043.0,57042.0,0.15774326]
[1720779120363,0.89486078,57043.0,57042.0,0.14340296]
[1720779120676,1.24547278,57043.0,57042.0,0.00464873]
[1720779121985,0.350624,57041.0,57038.0,0.00464873]
[1720779122415,0.941392,57039.0,57038.0,0.00464873]
[1720779122612,1.292029,57039.0,57038.0,0.00464873]
[1720779123020,0.525973,57037.0,57036.0,0.00067873]
[1720779123222,0.876622,57037.0,57036.0,0.00067873]
[1720779123425,1.227271,57037.0,57036.0,0.00067873]
[1720779123627,1.57792,57037.0,57036.0,0.00067873]
[1720779123843,0.0648,57039.0,57034.0,0.00067873]
[1720779123844,0.525991,57035.0,57034.0,0.00067873]
[1720779124049,0.0648,57039.0,57030.0,0.00067873]
[1720779124050,0.526029,57031.0,57030.0,0.00067873]
[1720779124250,0.350674,57033.0,57026.0,0.000913]
[1720779124251,0.526038,57030.0,57029.0,0.00067873]
[1720779124465,1.227422,57030.0,57029.0,0.00067873]
[1720779124670,1.292243,57029.0,57028.0,0.00067873]
[1720779124870,1.292243,57029.0,57026.0,0.000913]
[1720779124871,0.876777,57027.0,57026.0,0.00159173]
[1720779125073,1.578199,57027.0,57026.0,0.000913]
[1720779125420,1.578199,57027.0,57026.0,0.00159173]
[1720779125833,1.578199,57027.0,57026.0,0.000913]
[1720779125834,1.553199,57027.0,57026.0,0.000913]
[1720779126164,1.553199,57027.0,57026.0,0.00159173]
[1720779126367,0.851777,57027.0,57026.0,0.12908056]
[1720779126566,0.851777,57027.0,57026.0,0.28734596]
[1720779126884,0.501066,57027.0,57026.0,0.28734596]
[1720779127088,0.851777,57027.0,57026.0,0.14034596]
[1720779127318,1.202488,57027.0,57026.0,0.14034596]
[1720779128185,0.1433,57038.0,57037.0,0.11643296]
[1720779128186,0.525964,57038.0,57037.0,0.11643296]
[1720779128775,0.525964,57038.0,57037.0,0.13943296]
[1720779129427,0.876607,57038.0,57037.0,0.13943296]
[1720779129889,0.876607,57038.0,57037.0,0.00067873]
[1720779130088,0.89103997,57038.0,57037.0,0.11643296]
[1720779130301,0.525964,57038.0,57037.0,0.15337626]
[1720779130530,0.01833078,57043.0,57042.0,0.11643296]
[1720779130753,0.01833078,57043.0,57042.0,0.13943296]
[1720779130754,0.03276508,57043.0,57042.0,0.13943296]
[1720779130958,0.55868908,57043.0,57042.0,0.13943296]
[1720779131579,0.90930708,57043.0,57042.0,0.00067873]
[1720779131780,0.90930708,57043.0,57042.0,0.11643296]
[1720779131781,1.25992508,57043.0,57042.0,0.11643296]
[1720779131929,1.25992508,57043.0,57042.0,0.00067873]
[1720779132133,1.25992508,57043.0,57042.0,0.11643296]
[1720779132340,1.25992508,57043.0,57042.0,0.00067873]
[1720779132859,1.25992451,57043.0,57042.0,0.00067873]
[1720779133316,1.25992451,57043.0,57042.0,0.11643296]
[1720779134284,1.25908207,57043.0,57042.0,0.12807626]
[1720779134493,1.25908207,57043.0,57042.0,0.11643296]
[1720779134854,1.25908207,57043.0,57042.0,0.00067873]
[1720779135292,0.71566973,57043.0,57042.0,0.00067873]
[1720779135496,1.25992451,57043.0,57042.0,0.00067873]
[1720779136176,1.25992214,57043.0,57042.0,0.00067873]
[1720779136648,0.90930414,57043.0,57042.0,0.00067873]
[1720779137602,0.90930414,57043.0,57042.0,0.11643296]
[1720779138601,0.90930414,57043.0,57042.0,0.00067873]
[1720779138841,0.90930414,57043.0,57042.0,0.11643296]
[1720779139086,0.55868614,57043.0,57042.0,0.11643296]
[1720779139329,0.55868614,57043.0,57042.0,0.20313296]
[1720779139330,0.55868621,57043.0,57042.0,0.20313296]
[1720779139837,0.55868598,57043.0,57042.0,0.20313296]
[1720779142193,0.55868611,57043.0,57042.0,0.13943296]
[1720779142625,0.55868532,57043.0,57042.0,0.00067873]
[1720779142812,0.54425478,57043.0,57042.0,0.00067873]
[1720779143015,0.55868512,57043.0,57042.0,0.00067873]
[1720779143222,0.54425478,57043.0,57042.0,0.00067873]
[1720779143426,0.55868545,57043.0,57042.0,0.00067873]
[1720779146005,0.175309,57042.0,57041.0,0.00067873]
[1720779146444,0.18973936,57042.0,57041.0,0.00067873]
[1720779146662,0.175312,57041.0,57040.0,0.00067873]
[1720779146859,0.18974236,57041.0,57040.0,0.00067873]
[1720779148233,0.18974236,57041.0,57040.0,0.12807626]
[1720779148438,0.18974236,57041.0,57040.0,0.13943296]
[1720779149047,0.175312,57041.0,57040.0,0.13943296]
[1720779150830,0.175312,57041.0,57040.0,0.00067873]
[1720779151251,0.175312,57041.0,57040.0,0.11643296]
[1720779152065,0.175312,57041.0,57040.0,0.00067873]
[1720779152447,0.236912,57041.0,57040.0,0.00067873]
[1720779154090,0.319512,57041.0,57040.0,0.00067873]
[1720779154695,0.17533,57035.0,57034.0,0.00067873]
[1720779154823,0.0619,57035.0,57034.0,0.00067873]
[1720779155022,0.175337,57033.0,57032.0,0.00067873]
[1720779155432,0.175337,57033.0,57027.0,0.11575423]
[1720779155433,0.175352,57028.0,57027.0,0.00067873]
[1720779155676,0.0797,57032.0,57026.0,0.00159173]
[1720779155677,0.175355,57027.0,57026.0,0.00159173]
[1720779155891,0.2556905,57027.0,57026.0,0.000913]
[1720779156114,0.2556905,57027.0,57026.0,0.0008458]
[1720779156115,0.238155,57027.0,57026.0,0.0008458]
[1720779157481,0.175355,57027.0,57026.0,0.0008458]
[1720779157830,0.175355,57027.0,57026.0,0.11660003]
[1720779158029,0.175355,57027.0,57026.0,0.0008458]
[1720779159195,0.175355,57027.0,57026.0,0.11660003]
[1720779159981,0.175355,57027.0,57026.0,0.0008458]
[1720779161021,0.1928905,57027.0,57026.0,0.0008458]
[1720779161232,0.3387905,57027.0,57026.0,0.0008458]
[1720779165896,0.321255,57027.0,57026.0,0.0008458]
[1720779166114,0.321255,57027.0,57020.0,0.5]
[1720779166115,0.175373,57021.0,57020.0,0.5]
[1720779166329,0.318273,57021.0,57020.0,0.5]
[1720779166553,0.518273,57021.0,57020.0,0.46750565]
[1720779166982,0.618273,57021.0,57020.0,0.44287428]
[1720779167196,0.618273,57021.0,57020.0,0.30584935]
[1720779167197,0.71759427,57021.0,57020.0,0.30584935]
[1720779167424,0.31941,57009.0,57008.0,0.000913]
[1720779167628,0.72541,57009.0,57008.0,0.000913]
[1720779167829,0.52541,57009.0,57008.0,0.000913]
[1720779168240,0.5398295,57009.0,57008.0,0.000913]
[1720779168872,0.5398294,57009.0,57008.0,0.000913]
[1720779169073,0.59381234,57009.0,57008.0,0.000913]
[1720779169274,0.5398294,57009.0,57008.0,0.000913]
[1720779170638,0.55816018,57009.0,57008.0,0.000913]
[1720779170866,0.54374078,57009.0,57008.0,0.000913]
[1720779171316,0.48094078,57009.0,57008.0,0.000913]
[1720779171678,0.27494078,57009.0,57008.0,0.000913]
[1720779172045,0.19374078,57009.0,57008.0,0.000913]
[1720779172230,0.21973486,57009.0,57008.0,0.000913]
[1720779172441,0.19374078,57009.0,57008.0,0.11666723]
[1720779172849,0.19374078,57009.0,57008.0,0.000913]
[1720779173076,0.19374078,57009.0,57008.0,0.11666723]
[1720779174081,0.19374078,57009.0,57008.0,0.13966723]
[1720779174283,0.19374078,57009.0,57008.0,0.000913]
[1720779174483,0.21311486,57009.0,57008.0,0.000913]
[1720779174884,0.17957001,57014.0,57008.0,0.000913]
[1720779175091,0.17541,57009.0,57008.0,0.000913]
[1720779178241,0.17541,57009.0,57008.0,0.17866723]
[1720779178481,0.287,57025.0,57012.0,0.00067873]
[1720779178702,0.01442259,57024.0,57013.0,0.00306353]
[1720779179036,0.01442241,57023.0,57013.0,0.00306353]
[1720779179239,0.30533078,57025.0,57013.0,0.00306353]
[1720779179455,0.30533078,57025.0,57016.0,0.11575423]
[1720779179824,0.30533078,57025.0,57013.0,0.00067873]
[1720779180055,0.30533078,57025.0,57014.0,0.00306353]
[1720779180209,0.01442266,57024.0,57014.0,0.00306353]
[1720779180417,0.01442258,57023.0,57014.0,0.00306353]
[1720779180617,0.01442258,57022.0,57013.0,0.00067873]
[1720779180853,0.2,57024.0,57013.0,0.00067873]
[1720779181061,0.0144226,57023.0,57014.0,0.00306353]
[1720779181262,0.31459701,57025.0,57014.0,0.00306353]
[1720779181622,0.01442251,57024.0,57014.0,0.00306353]
[1720779181830,0.01442251,57024.0,57013.0,0.00067873]
[1720779181831,0.01442251,57023.0,57013.0,0.00067873]
[1720779182038,0.31459701,57025.0,57011.0,0.00306353]
[1720779182039,0.01442251,57022.0,57016.0,0.11575423]
[1720779182231,0.31459701,57025.0,57016.0,0.11575423]
[1720779182410,0.01442309,57024.0,57016.0,0.11575423]
[1720779182564,0.01442309,57023.0,57016.0,0.11575423]
[1720779182796,0.01442309,57022.0,57016.0,0.11575423]
[1720779183006,0.31459701,57025.0,57016.0,0.11575423]
[1720779183214,0.31459701,57025.0,57013.0,0.00067873]
[1720779183215,0.02759701,57025.0,57019.0,0.11575423]
[1720779183595,0.02759701,57025.0,57018.0,0.11575423]
[1720779183790,0.02759701,57025.0,57019.0,0.11575423]
[1720779184012,0.02759701,57025.0,57020.0,0.11575423]
[1720779184855,0.02759701,57025.0,57021.0,0.11575423]
[1720779185538,0.02759701,57025.0,57020.0,0.11575423]
[1720779185954,0.02759701,57025.0,57023.0,0.11575423]
[1720779186159,0.02759701,57025.0,57024.0,0.11575423]
[1720779187229,0.02759701,57025.0,57023.0,0.11575423]
[1720779187541,0.02759701,57025.0,57022.0,0.00067873]
[1720779187542,0.02759701,57025.0,57024.0,0.11575423]
[1720779188601,0.02759701,57025.0,57022.0,0.00067873]
[1720779190357,0.526102,57023.0,57022.0,0.00067873]
[1720779190565,0.876837,57023.0,57022.0,0.00067873]
[1720779190765,1.227572,57023.0,57022.0,0.00067873]
[1720779190963,0.526102,57023.0,57022.0,0.00067873]
[1720779191362,1.227572,57023.0,57022.0,0.11643296]
[1720779192122,1.227572,57023.0,57022.0,0.00067873]
[1720779192932,1.578307,57023.0,57022.0,0.00067873]
[1720779193144,1.227572,57023.0,57022.0,0.00067873]
[1720779193768,1.227572,57023.0,57022.0,0.11643296]
[1720779193943,1.228402,57023.0,57022.0,0.11643296]
[1720779194552,1.228402,57023.0,57022.0,0.00067873]
[1720779195123,1.228402,57023.0,57022.0,0.11643296]
[1720779197066,1.228402,57023.0,57022.0,0.00067873]
[1720779198253,1.228402,57023.0,57022.0,0.11643296]
[1720779198856,1.228402,57023.0,57022.0,0.11618631]
[1720779200364,0.877667,57023.0,57022.0,0.11618631]
[1720779202589,0.89208113,57023.0,57022.0,0.11618631]
[1720779203020,0.89208113,57023.0,56959.0,0.77902116]
[1720779203250,0.89208113,57023.0,57017.0,0.06]
[1720779203251,0.1,57018.0,57017.0,0.06]
[1720779203781,0.1,57019.0,57018.0,0.06]
[1720779203984,0.1,57019.0,57017.0,0.06]
[1720779204184,0.17844053,57020.0,57011.0,0.06]
[1720779204185,0.10306353,57018.0,57011.0,0.06]
[1720779204393,0.15,57015.0,57012.0,0.0865075]
[1720779204609,0.10306353,57018.0,57013.0,0.06]
[1720779204610,0.00306353,57014.0,57013.0,0.06]
[1720779204841,0.00306353,57014.0,57013.0,0.083]
[1720779205042,0.00306353,57017.0,57016.0,0.06]
[1720779205211,0.00306353,57017.0,57016.0,0.083]
[1720779205627,0.00306353,57017.0,57016.0,0.023]
[1720779205820,0.00306353,57017.0,57014.0,0.083]
[1720779206045,0.18511435,57020.0,57017.0,0.06]
[1720779206220,0.36049135,57020.0,57017.0,0.06]
[1720779206660,0.36049135,57020.0,57018.0,0.06]
[1720779207219,0.36049135,57020.0,57019.0,0.06]
[1720779207673,0.39172304,57020.0,57018.0,0.06]
[1720779207881,0.21634604,57020.0,57019.0,0.06]
[1720779208029,0.39172304,57020.0,57019.0,0.06]
[1720779209374,0.03123169,57020.0,57019.0,0.41275]
[1720779209576,0.03123169,57020.0,57019.0,1.30243353]
[1720779209914,0.03123169,57020.0,57019.0,1.65319353]
[1720779210197,0.03123169,57020.0,57019.0,1.64662253]
[1720779210564,0.00083,57023.0,57022.0,0.936852]
[1720779210905,0.00083,57023.0,57022.0,1.4192553]
[1720779211199,0.00083,57023.0,57022.0,0.231]
[1720779213557,0.00083,57023.0,57022.0,1.29645879]
[1720779213709,0.00083,57023.0,57022.0,1.292952]
[1720779213905,0.00083,57023.0,57022.0,1.23840345]
[1720779214820,0.00043698,57023.0,57022.0,1.58914445]
[1720779215022,0.00043698,57023.0,57022.0,2.43638875]
[1720779215543,0.00043698,57023.0,57022.0,1.90054775]
[1720779215946,0.00043698,57023.0,57022.0,1.58914445]
[1720779216172,0.00043698,57023.0,57022.0,1.77424445]
[1720779218571,0.00043698,57023.0,57022.0,2.22498545]
[1720779218774,0.08511435,57036.0,57035.0,1.041852]
[1720779218898,0.08511435,57042.0,57041.0,0.06]
[1720779219107,0.08511435,57042.0,57041.0,0.1207]
[1720779219301,0.08511435,57042.0,57041.0,0.1437]
[1720779220241,0.08511435,57042.0,57041.0,0.669636]
[1720779220393,0.08511435,57042.0,57041.0,0.73695019]
[1720779221218,0.00083,57043.0,57041.0,0.73695019]
[1720779221219,0.00083,57043.0,57042.0,1.000045]
[1720779221417,0.00083,57043.0,57042.0,1.023045]
[1720779221658,0.00083,57043.0,57042.0,1.373663]
[1720779221945,0.00083,57043.0,57042.0,1.7290004]
[1720779222154,0.00083,57043.0,57042.0,2.1578184]
[1720779222323,0.00083,57043.0,57042.0,1.8072004]
[1720779223139,0.00083,57043.0,57042.0,1.2714824]
[1720779223307,0.00083,57043.0,57042.0,0.3949374]
[1720779223507,0.00083,57043.0,57042.0,0.1235]
[1720779223913,0.00083,57043.0,57042.0,0.649427]
[1720779224516,0.00083,57043.0,57042.0,1.000045]
[1720779224693,0.00083,57043.0,57042.0,0.672427]
[1720779224895,0.00083,57043.0,57042.0,0.1235]
[1720779225122,0.00083,57043.0,57041.0,0.06]
[1720779225327,0.00083,57043.0,57040.0,0.06]
[1720779225328,0.08511435,57042.0,57040.0,0.06]
[1720779225566,0.08511435,57042.0,57041.0,0.06]
[1720779226127,0.08511435,57042.0,57039.0,0.0661]
[1720779226128,0.08511435,57042.0,57035.0,0.06]
[1720779226333,0.08511435,57042.0,57036.0,0.00350602]
[1720779226549,0.15,57039.0,57036.0,0.06350602]
[1720779227392,0.15,57039.0,57038.0,0.06]
[1720779228136,0.15,57039.0,57038.0,0.083]
[1720779229649,0.08511435,57042.0,57041.0,0.06]
[1720779230686,0.00083,57043.0,57042.0,0.1205]
[1720779231088,0.00083,57043.0,57042.0,0.1435]
[1720779231289,0.00083,57043.0,57042.0,0.16816058]
[1720779233175,0.00083,57043.0,57042.0,0.023]
[1720779233379,0.00083,57043.0,57042.0,0.06]
[1720779233582,0.00083,57043.0,57042.0,0.083]
[1720779236233,0.00083,57043.0,57042.0,0.2618147]
[1720779236433,0.00083,57043.0,57042.0,0.7538327]
[1720779236673,0.00083,57043.0,57042.0,1.19834397]
[1720779237105,0.00083,57043.0,57042.0,0.84772597]
[1720779240641,0.00083,57043.0,57042.0,0.42200797]
[1720779241062,0.00083,57043.0,57042.0,0.1493]
[1720779241261,0.00083,57043.0,57042.0,0.083]
[1720779241462,0.00083,57043.0,57042.0,0.023]
[1720779241729,0.00083,57043.0,57042.0,0.08650577]
[1720779242571,0.00083,57043.0,57042.0,0.083]
[1720779244054,0.00083,57043.0,57042.0,0.023]
[1720779244258,0.00083,57043.0,57042.0,0.083]
[1720779244489,0.00083,57043.0,57042.0,0.06]
[1720779244637,0.00083,57043.0,57042.0,0.083]
[1720779246338,0.00083,57043.0,57042.0,0.023]
[1720779246542,0.00083,57043.0,57042.0,0.08650575]
[1720779246943,0.669848,57043.0,57042.0,0.023]
[1720779247165,0.15,57039.0,57038.0,0.023]
[1720779247489,0.15,57039.0,57035.0,0.023]
[1720779247690,0.15,57039.0,57036.0,0.06]
[1720779247892,0.15,57039.0,57037.0,0.023]
[1720779248229,0.35,57039.0,57037.0,0.023]
[1720779248424,0.2,57037.0,57034.0,0.023]
[1720779248648,0.725964,57038.0,57034.0,0.023]
[1720779248852,0.325319,57039.0,57035.0,0.06]
[1720779249049,0.325319,57039.0,57037.0,0.06]
[1720779249437,0.325319,57039.0,57038.0,0.023]
[1720779249572,0.175321,57038.0,57037.0,0.023]
[1720779249772,0.175327,57037.0,57034.0,0.023]
[1720779250382,0.525991,57035.0,57034.0,0.023]
[1720779250604,0.525991,57035.0,57023.0,0.03517]
[1720779250605,0.175335,57034.0,57033.0,0.023]
[1720779250807,0.175335,57034.0,57022.0,0.3906033]
[1720779250808,0.15,57031.0,57026.0,0.06]
[1720779250982,0.15,57031.0,57024.0,0.15874193]
[1720779250983,0.15,57031.0,57025.0,0.06]
[1720779251182,0.15,57031.0,57018.0,0.289752]
[1720779251183,0.15,57031.0,57026.0,0.06]
[1720779251559,0.175347,57030.0,57026.0,0.06]
[1720779252308,0.325344,57031.0,57028.0,0.06]
[1720779252515,0.325344,57031.0,57021.0,0.0605]
[1720779252516,0.325344,57031.0,57029.0,0.083]
[1720779252708,0.325344,57031.0,57029.0,0.023]
[1720779252908,0.325344,57031.0,57027.0,0.023]
[1720779253136,0.175346,57030.0,57027.0,0.023]
[1720779253588,0.15,57031.0,57029.0,0.06]
[1720779253589,0.325344,57031.0,57029.0,0.06]
[1720779253744,0.325344,57031.0,57030.0,0.023]
[1720779254544,0.175346,57030.0,57029.0,0.023]
[1720779254997,0.175346,57030.0,57029.0,0.083]
[1720779255197,0.175346,57030.0,57029.0,0.023]
[1720779255752,0.325344,57031.0,57029.0,0.083]
[1720779256436,0.0756,57035.0,57033.0,0.06]
[1720779256726,0.525965,57038.0,57037.0,0.06]
[1720779256924,0.525965,57038.0,57033.0,0.06]
[1720779256925,0.175328,57036.0,57033.0,0.06]
[1720779257124,0.350649,57037.0,57032.0,0.0035063]
[1720779257125,0.350649,57037.0,57032.0,0.04037065]
[1720779257433,0.175333,57035.0,57033.0,0.06350634]
[1720779257713,0.175324,57037.0,57035.0,0.06]
[1720779258117,0.175324,57037.0,57036.0,0.023]
[1720779258553,0.175323,57038.0,57036.0,0.083]
[1720779258695,0.175319,57039.0,57037.0,0.06]
[1720779258896,0.175319,57039.0,57038.0,0.06]
[1720779259299,0.00083,57043.0,57042.0,0.06]
[1720779259498,0.00083,57043.0,57042.0,0.1472]
[1720779259813,0.00083,57043.0,57042.0,0.15070564]
[1720779260477,0.00083,57043.0,57042.0,0.1472]
[1720779261024,0.00083,57043.0,57042.0,0.67663255]
[1720779261434,0.00083,57043.0,57042.0,1.37786855]
[1720779261639,0.00083,57043.0,57042.0,1.10885055]
[1720779262065,0.00083,57043.0,57042.0,1.80510394]
[1720779262269,0.00083,57043.0,57042.0,1.80159839]
[1720779263223,0.00083,57043.0,57042.0,1.83676839]
[1720779263655,0.00083,57043.0,57042.0,1.30105039]
[1720779265038,0.00083,57043.0,57042.0,0.56464439]
[1720779265241,0.00083,57043.0,57042.0,0.754727]
[1720779265470,0.00083,57043.0,57042.0,0.404109]
[1720779265661,0.00083,57043.0,57042.0,0.673127]
[1720779266032,0.00083,57043.0,57042.0,1.023745]
[1720779266206,0.08511435,57053.0,57052.0,0.06]
[1720779266425,0.08511435,57053.0,57052.0,0.083]
[1720779268565,0.08511435,57053.0,57052.0,0.08606353]
[1720779268739,0.08511435,57053.0,57052.0,0.16124528]
[1720779270480,0.08511435,57053.0,57052.0,0.023]
[1720779270649,0.08511435,57053.0,57051.0,0.023]
[1720779272489,0.08511435,57053.0,57051.0,0.083]
[1720779273665,0.08511435,57053.0,57051.0,0.023]
[1720779274608,0.08511435,57053.0,57051.0,0.083]
[1720779275064,0.08511435,57053.0,57052.0,0.06]
[1720779275205,0.08511435,57053.0,57052.0,0.083]
[1720779277306,0.0791,57060.0,57058.0,0.06]
[1720779277478,0.08511435,57061.0,57060.0,0.06]
[1720779277617,0.08511435,57061.0,57060.0,0.083]
[1720779280153,0.07017913,57065.0,57063.0,0.06]
[1720779280376,0.07017913,57065.0,57064.0,0.02606353]
[1720779280575,0.07017913,57065.0,57064.0,0.03696988]
[1720779280776,0.07017913,57065.0,57064.0,0.09390635]
[1720779280956,0.07017913,57065.0,57064.0,0.083]
[1720779282271,0.07017913,57065.0,57064.0,0.023]
[1720779282667,0.07017913,57065.0,57063.0,0.083]
[1720779282897,0.07017913,57065.0,57064.0,0.00306353]
[1720779283103,0.07017913,57065.0,57064.0,0.02606353]
[1720779283278,0.07017913,57065.0,57064.0,0.023]
[1720779283719,0.07017913,57065.0,57061.0,0.02606353]
[1720779284550,0.08511435,57062.0,57061.0,0.08606353]
[1720779284732,0.08511435,57062.0,57061.0,0.083]
[1720779284871,0.08511435,57062.0,57061.0,0.09791755]
[1720779286378,0.08511435,57062.0,57061.0,0.17361755]
[1720779286617,0.08511435,57062.0,57061.0,0.03791755]
[1720779286825,0.08511435,57062.0,57061.0,0.023]
[1720779286826,0.14681435,57062.0,57061.0,0.023]
[1720779287023,0.14681435,57062.0,57060.0,0.023]
[1720779287226,0.14681435,57062.0,57058.0,0.06]
[1720779287438,0.14681435,57062.0,57060.0,0.06]
[1720779287630,0.14681435,57062.0,57061.0,0.023]
[1720779288221,0.14681435,57062.0,57058.0,0.023]
[1720779288418,0.14681435,57062.0,57057.0,0.023]
[1720779288762,0.14681435,57062.0,57053.0,0.250974]
[1720779288763,0.2,57058.0,57053.0,0.06]
[1720779288996,0.08511435,57054.0,57052.0,0.06]
[1720779289207,0.08511435,57054.0,57046.0,0.0757]
[1720779289208,0.08511435,57054.0,57053.0,0.06]
[1720779289948,0.14681435,57062.0,57056.0,0.06]
[1720779290177,0.14681435,57062.0,57058.0,0.06]
[1720779290582,0.14681435,57062.0,57059.0,0.023]
[1720779291352,0.14681435,57062.0,57060.0,0.06]
[1720779291559,0.0778,57067.0,57062.0,0.06]
[1720779291759,0.170234,57067.0,57063.0,0.083]
[1720779292018,0.170234,57067.0,57064.0,0.01095046]
[1720779292423,0.170234,57067.0,57065.0,0.023]
[1720779292848,0.170234,57067.0,57061.0,0.02650456]
[1720779293015,0.08511435,57062.0,57061.0,0.02650456]
[1720779293419,0.08511435,57062.0,57061.0,0.023]
[1720779293753,0.08511435,57062.0,57057.0,0.023]
[1720779294619,0.08511435,57062.0,57057.0,0.083]
[1720779294816,0.08511435,57062.0,57057.0,0.023]
[1720779295020,0.08511435,57062.0,57057.0,0.083]
[1720779295727,0.08511435,57062.0,57058.0,0.06]
[1720779295877,0.08511435,57062.0,57059.0,0.023]
[1720779296911,0.52578,57058.0,57057.0,0.023]
[1720779297110,0.52578,57058.0,57053.0,0.06]
[1720779297111,0.08511435,57055.0,57053.0,0.06]
[1720779297340,0.08511435,57055.0,57054.0,0.07209]
[1720779297547,0.08511435,57055.0,57053.0,0.06]
[1720779298157,0.17526,57059.0,57056.0,0.06]
[1720779298358,0.17526,57059.0,57058.0,0.06]
[1720779298564,0.525774,57059.0,57058.0,0.06]
[1720779298733,0.175258,57059.0,57057.0,0.023]
[1720779298938,0.417004,57061.0,57057.0,0.023]
[1720779299336,0.350514,57060.0,57057.0,0.023]
[1720779299539,0.175259,57059.0,57057.0,0.023]
[1720779300432,0.17526,57058.0,57057.0,0.023]
[1720779300642,0.17526,57058.0,57048.0,0.03540264]
[1720779300643,0.175285,57050.0,57045.0,0.078]
[1720779300850,0.175285,57050.0,57046.0,0.023]
[1720779300851,0.175294,57047.0,57046.0,0.023]
[1720779301057,0.175294,57047.0,57036.0,0.175325]
[1720779301058,0.08511435,57050.0,57036.0,0.1386]
[1720779301059,0.175312,57041.0,57036.0,0.1386]
[1720779301260,0.175312,57041.0,57036.0,0.10206894]
[1720779301261,0.0655,57041.0,57036.0,0.10206894]
[1720779301461,0.0655,57041.0,57032.0,0.1405]
[1720779301462,0.08511435,57037.0,57032.0,0.1405]
[1720779301611,0.08511435,57037.0,57025.0,0.3114033]
[1720779301612,0.2,57033.0,57027.0,0.06]
[1720779301817,0.2,57033.0,57028.0,0.0777]
[1720779302016,0.175326,57037.0,57031.0,0.06]
[1720779302655,0.175326,57037.0,57032.0,0.00350635]
[1720779303411,0.175328,57036.0,57033.0,0.06]
[1720779303615,0.175328,57036.0,57032.0,0.00350635]
[1720779303817,0.41613,57041.0,57036.0,0.1395]
[1720779303818,0.175312,57041.0,57036.0,0.1395]
[1720779304079,0.175312,57041.0,57037.0,0.08650612]
[1720779304498,0.175312,57041.0,57030.0,0.00306353]
[1720779304499,0.350616,57043.0,57030.0,0.14776965]
[1720779304500,0.350662,57035.0,57030.0,0.14776965]
[1720779304703,0.2,57041.0,57031.0,0.06]
[1720779304949,0.2,57041.0,57030.0,0.08470612]
[1720779304950,0.2,57041.0,57035.0,0.06]
[1720779304951,0.175315,57041.0,57035.0,0.06]
[1720779305197,0.175315,57041.0,57030.0,0.0812]
[1720779305198,0.175316,57040.0,57036.0,0.00350612]
[1720779305404,0.175316,57040.0,57036.0,0.0034303]
[1720779305620,0.175307,57043.0,57038.0,0.06]
[1720779305819,0.17531,57042.0,57039.0,0.1012]
[1720779306030,0.17531,57042.0,57039.0,0.11766303]
[1720779306248,0.350605,57045.0,57039.0,0.11766303]
[1720779306249,0.175305,57044.0,57039.0,0.11766303]
[1720779306451,0.175305,57044.0,57039.0,0.17866303]
[1720779306641,0.175292,57048.0,57043.0,0.06]
[1720779306793,0.63568435,57050.0,57045.0,0.06]
[1720779306794,0.175289,57049.0,57045.0,0.06]
[1720779307224,0.2653,57051.0,57045.0,0.06]
[1720779307225,0.175281,57051.0,57045.0,0.06]
[1720779307536,0.175285,57050.0,57046.0,0.02650556]
[1720779307775,0.175285,57050.0,57046.0,0.023]
[1720779308188,0.701176,57047.0,57046.0,0.023]
[1720779308392,0.701176,57047.0,57040.0,0.0238663]
[1720779308393,0.2,57044.0,57040.0,0.0238663]